[Event "Goteborg Open 2018"]
[Site "Molnlycke kulturhus, Biblioteksgatan 2, Molnlycke, Sweden"]
[Date "2018.08.17"]
[Round "1.1"]
[White "Golubka, Petro"]
[Black "Ottgard, Andreas"]
[Result "1-0"]
[TimeControl "15 minutes + 5 seconds per move from move one (Round 1 - 4) / 90 minutes + 30 seconds per move from move one (Round 5 - 8)"]
[WhiteTitle "IM"]
[WhiteFideId "14114224"]
[BlackFideId "1730592"]
[WhiteElo "2478"]
[BlackElo "1871"]

1. d4 {[%clk 00:15:02]} {[%emt 00:00:02]} Nf6 {[%clk 00:15:04]} {[%emt
00:00:02]} 2. Nf3 {[%clk 00:15:06]} {[%emt 00:00:02]} g6 {[%clk 00:15:06]}
{[%emt 00:00:02]} 3. c4 {[%clk 00:15:09]} {[%emt 00:00:02]} c5 {[%clk
00:15:07]} {[%emt 00:00:04]} 4. d5 {[%clk 00:15:10]} {[%emt 00:00:04]} e6
{[%clk 00:15:09]} {[%emt 00:00:03]} 5. Nc3 {[%clk 00:15:12]} {[%emt 00:00:02]}
exd5 {[%clk 00:15:10]} {[%emt 00:00:04]} 6. cxd5 {[%clk 00:15:15]} {[%emt
00:00:02]} d6 {[%clk 00:15:13]} {[%emt 00:00:02]} 7. e4 {[%clk 00:15:19]}
{[%emt 00:00:01]} Bg7 {[%clk 00:15:15]} {[%emt 00:00:02]} 8. h3 {[%clk
00:15:22]} {[%emt 00:00:02]} O-O {[%clk 00:15:13]} {[%emt 00:00:08]} 9. Bd3
{[%clk 00:15:26]} b5 {[%clk 00:14:39]} {[%emt 00:00:39]} 10. O-O {[%clk
00:15:12]} {[%emt 00:00:19]} a6 {[%clk 00:12:55]} {[%emt 00:01:50]} 11. Bf4
{[%clk 00:14:49]} {[%emt 00:00:28]} Re8 {[%clk 00:12:15]} {[%emt 00:00:45]} 12.
Re1 {[%clk 00:14:49]} {[%emt 00:00:04]} Bb7 {[%clk 00:11:13]} {[%emt 00:01:08]}
13. Rc1 {[%clk 00:14:46]} {[%emt 00:00:08]} Nh5 {[%clk 00:10:24]} {[%emt
00:00:54]} 14. Bg5 {[%clk 00:14:33]} {[%emt 00:00:18]} Qc7 {[%clk 00:10:02]}
{[%emt 00:00:27]} 15. Qd2 {[%clk 00:14:10]} {[%emt 00:00:28]} Nd7 {[%clk
00:09:44]} {[%emt 00:00:23]} 16. b3 {[%clk 00:13:40]} {[%emt 00:00:35]} Ne5
{[%clk 00:08:40]} {[%emt 00:01:09]} 17. Be2 {[%clk 00:13:25]} {[%emt 00:00:20]}
Nxf3+ {[%clk 00:07:43]} {[%emt 00:01:02]} 18. Bxf3 {[%clk 00:13:28]} {[%emt
00:00:02]} Nf6 {[%clk 00:06:36]} {[%emt 00:01:12]} 19. e5 {[%clk 00:13:06]}
{[%emt 00:00:27]} Rxe5 {[%clk 00:06:10]} {[%emt 00:00:31]} 20. Rxe5 {[%clk
00:13:09]} {[%emt 00:00:02]} dxe5 {[%clk 00:06:13]} {[%emt 00:00:02]} 21. Bxf6
{[%clk 00:12:32]} {[%emt 00:00:43]} Bxf6 {[%clk 00:06:16]} {[%emt 00:00:02]} 22.
Ne4 {[%clk 00:12:36]} {[%emt 00:00:01]} Qd8 {[%clk 00:05:04]} {[%emt 00:01:18]}
23. Nxf6+ {[%clk 00:11:36]} {[%emt 00:01:04]} Qxf6 {[%clk 00:05:07]} {[%emt
00:00:02]} 24. Rxc5 {[%clk 00:11:40]} {[%emt 00:00:01]} Qd6 {[%clk 00:03:51]}
{[%emt 00:01:21]} 25. b4 {[%clk 00:11:42]} {[%emt 00:00:03]} Rc8 {[%clk
00:03:36]} {[%emt 00:00:20]} 26. Qc3 {[%clk 00:11:43]} {[%emt 00:00:04]} Rd8
{[%clk 00:03:11]} {[%emt 00:00:31]} 27. g3 {[%clk 00:11:42]} {[%emt 00:00:05]}
f5 {[%clk 00:03:00]} {[%emt 00:00:17]} 28. Bd1 {[%clk 00:11:45]} {[%emt
00:00:02]} Rd7 {[%clk 00:02:43]} {[%emt 00:00:21]} 29. Bb3 {[%clk 00:11:43]}
{[%emt 00:00:07]} Kf8 {[%clk 00:02:21]} {[%emt 00:00:27]} 30. a3 {[%clk
00:11:04]} {[%emt 00:00:44]} Qe7 {[%clk 00:01:55]} {[%emt 00:00:31]} 31. Kf1
{[%clk 00:10:49]} {[%emt 00:00:20]} Qg7 {[%clk 00:01:04]} {[%emt 00:00:56]} 32.
a4 {[%clk 00:10:01]} {[%emt 00:00:53]} bxa4 {[%clk 00:00:46]} {[%emt 00:00:23]}
33. Bxa4 {[%clk 00:10:05]} {[%emt 00:00:01]} 1-0

[Event "Goteborg Open 2018"]
[Site "Molnlycke kulturhus, Biblioteksgatan 2, Molnlycke, Sweden"]
[Date "2018.08.17"]
[Round "1.2"]
[White "Andersson, Stig"]
[Black "Gritsak, Orest"]
[Result "0-1"]
[TimeControl "15 minutes + 5 seconds per move from move one (Round 1 - 4) / 90 minutes + 30 seconds per move from move one (Round 5 - 8)"]
[BlackTitle "GM"]
[WhiteFideId "1731971"]
[BlackFideId "14102188"]
[WhiteElo "1865"]
[BlackElo "2464"]

1. d4 {[%clk 00:14:25]} {[%emt 00:00:39]} d5 {[%clk 00:14:54]} {[%emt
00:00:12]} 2. e3 {[%clk 00:14:27]} {[%emt 00:00:03]} Nf6 {[%clk 00:14:45]}
{[%emt 00:00:14]} 3. Nf3 {[%clk 00:14:30]} {[%emt 00:00:02]} e6 {[%clk
00:13:47]} {[%emt 00:01:03]} 4. Nbd2 {[%clk 00:14:29]} {[%emt 00:00:05]} c5
{[%clk 00:13:45]} {[%emt 00:00:07]} 5. c3 {[%clk 00:14:30]} {[%emt 00:00:04]}
Nbd7 {[%clk 00:13:11]} {[%emt 00:00:38]} 6. Bd3 {[%clk 00:14:30]} {[%emt
00:00:05]} a6 {[%clk 00:13:08]} {[%emt 00:00:09]} 7. O-O {[%clk 00:14:29]}
{[%emt 00:00:05]} b5 {[%clk 00:13:09]} {[%emt 00:00:04]} 8. Ne5 {[%clk
00:14:21]} {[%emt 00:00:13]} Bb7 {[%clk 00:12:58]} {[%emt 00:00:17]} 9. Nxd7
{[%clk 00:14:03]} {[%emt 00:00:23]} Qxd7 {[%clk 00:12:56]} {[%emt 00:00:07]} 10.
f3 {[%clk 00:14:05]} {[%emt 00:00:03]} Bd6 {[%clk 00:12:55]} {[%emt 00:00:07]}
11. Qe1 {[%clk 00:14:03]} {[%emt 00:00:07]} Qc7 {[%clk 00:10:16]} {[%emt
00:02:45]} 12. g3 {[%clk 00:13:53]} {[%emt 00:00:15]} O-O {[%clk 00:10:06]}
{[%emt 00:00:15]} 13. e4 {[%clk 00:13:45]} {[%emt 00:00:13]} cxd4 {[%clk
00:09:33]} {[%emt 00:00:39]} 14. cxd4 {[%clk 00:13:37]} {[%emt 00:00:12]} e5
{[%clk 00:08:37]} {[%emt 00:01:02]} 15. dxe5 {[%clk 00:11:11]} {[%emt
00:02:30]} Bxe5 {[%clk 00:08:40]} {[%emt 00:00:02]} 16. exd5 {[%clk 00:10:34]}
{[%emt 00:00:42]} Bxd5 {[%clk 00:07:30]} {[%emt 00:01:16]} 17. Ne4 {[%clk
00:09:19]} {[%emt 00:01:19]} Rfe8 {[%clk 00:07:21]} {[%emt 00:00:14]} 18. Nxf6+
{[%clk 00:08:36]} {[%emt 00:00:48]} Bxf6 {[%clk 00:07:24]} {[%emt 00:00:02]} 19.
Qd1 {[%clk 00:08:38]} {[%emt 00:00:03]} Rad8 {[%clk 00:07:06]} {[%emt
00:00:23]} 20. Bf4 {[%clk 00:07:43]} {[%emt 00:01:00]} Qb6+ {[%clk 00:07:05]}
{[%emt 00:00:07]} 21. Kg2 {[%clk 00:07:42]} {[%emt 00:00:05]} Bc4 {[%clk
00:07:06]} {[%emt 00:00:04]} 0-1

[Event "Goteborg Open 2018"]
[Site "Molnlycke kulturhus, Biblioteksgatan 2, Molnlycke, Sweden"]
[Date "2018.08.17"]
[Round "1.3"]
[White "Vypkhaniuk, Ihor"]
[Black "Westergren, Bertil"]
[Result "1-0"]
[TimeControl "15 minutes + 5 seconds per move from move one (Round 1 - 4) / 90 minutes + 30 seconds per move from move one (Round 5 - 8)"]
[WhiteTitle "FM"]
[WhiteFideId "14112256"]
[BlackFideId "1712012"]
[WhiteElo "2357"]
[BlackElo "1857"]

1. Nf3 {[%clk 00:14:55]} {[%emt 00:00:10]} d5 {[%clk 00:15:07]} {[%emt
00:00:03]} 2. c4 {[%clk 00:14:54]} {[%emt 00:00:06]} c6 {[%clk 00:15:04]}
{[%emt 00:00:09]} 3. e3 {[%clk 00:14:55]} {[%emt 00:00:04]} Nf6 {[%clk
00:15:00]} {[%emt 00:00:09]} 4. Nc3 {[%clk 00:14:56]} {[%emt 00:00:04]} e6
{[%clk 00:14:28]} {[%emt 00:00:37]} 5. b3 {[%clk 00:14:44]} {[%emt 00:00:16]}
Be7 {[%clk 00:14:26]} {[%emt 00:00:07]} 6. Qc2 {[%clk 00:14:47]} {[%emt
00:00:02]} O-O {[%clk 00:14:17]} {[%emt 00:00:14]} 7. Be2 {[%clk 00:14:34]}
{[%emt 00:00:17]} Nbd7 {[%clk 00:14:12]} {[%emt 00:00:10]} 8. d4 {[%clk
00:14:24]} {[%emt 00:00:16]} a6 {[%clk 00:13:47]} {[%emt 00:00:30]} 9. O-O
{[%clk 00:14:20]} {[%emt 00:00:08]} Qc7 {[%clk 00:13:36]} {[%emt 00:00:17]} 10.
Bb2 {[%clk 00:14:05]} {[%emt 00:00:19]} dxc4 {[%clk 00:11:28]} {[%emt
00:02:13]} 11. bxc4 {[%clk 00:13:59]} {[%emt 00:00:12]} b5 {[%clk 00:11:14]}
{[%emt 00:00:20]} 12. c5 {[%clk 00:13:10]} {[%emt 00:00:53]} Re8 {[%clk
00:10:36]} {[%emt 00:00:43]} 13. Ng5 {[%clk 00:12:57]} {[%emt 00:00:18]} h6
{[%clk 00:10:26]} {[%emt 00:00:15]} 14. Nge4 {[%clk 00:12:49]} {[%emt
00:00:12]} Nd5 {[%clk 00:10:20]} {[%emt 00:00:12]} 15. Rac1 {[%clk 00:12:21]}
{[%emt 00:00:33]} N7f6 {[%clk 00:09:38]} {[%emt 00:00:47]} 16. Ng3 {[%clk
00:12:16]} {[%emt 00:00:09]} Nxc3 {[%clk 00:09:07]} {[%emt 00:00:37]} 17. Qxc3
{[%clk 00:12:17]} {[%emt 00:00:03]} Nd5 {[%clk 00:09:04]} {[%emt 00:00:08]} 18.
Qd2 {[%clk 00:12:21]} {[%emt 00:00:01]} Bf6 {[%clk 00:07:58]} {[%emt 00:01:11]}
19. f4 {[%clk 00:12:23]} {[%emt 00:00:02]} g6 {[%clk 00:07:50]} {[%emt
00:00:12]} 20. Kh1 {[%clk 00:12:19]} {[%emt 00:00:09]} Bg7 {[%clk 00:07:49]}
{[%emt 00:00:07]} 21. Ne4 {[%clk 00:12:22]} {[%emt 00:00:02]} f6 {[%clk
00:06:29]} {[%emt 00:01:25]} 22. Nd6 {[%clk 00:12:08]} {[%emt 00:00:18]} Rf8
{[%clk 00:06:29]} {[%emt 00:00:06]} 23. e4 {[%clk 00:12:02]} {[%emt 00:00:10]}
Ne7 {[%clk 00:06:27]} {[%emt 00:00:07]} 24. Bd3 {[%clk 00:11:43]} {[%emt
00:00:23]} Bd7 {[%clk 00:06:27]} {[%emt 00:00:05]} 25. Rce1 {[%clk 00:11:14]}
{[%emt 00:00:34]} f5 {[%clk 00:06:14]} {[%emt 00:00:19]} 26. exf5 {[%clk
00:10:34]} {[%emt 00:00:44]} Nxf5 {[%clk 00:06:05]} {[%emt 00:00:15]} 27. Bxf5
{[%clk 00:10:37]} {[%emt 00:00:02]} gxf5 {[%clk 00:05:39]} {[%emt 00:00:31]} 28.
Rf3 {[%clk 00:10:32]} {[%emt 00:00:09]} Bf6 {[%clk 00:05:24]} {[%emt 00:00:20]}
29. Bc3 {[%clk 00:09:28]} {[%emt 00:01:09]} a5 {[%clk 00:05:03]} {[%emt
00:00:27]} 30. Ree3 {[%clk 00:09:04]} {[%emt 00:00:29]} b4 {[%clk 00:04:54]}
{[%emt 00:00:15]} 31. Bb2 {[%clk 00:09:04]} {[%emt 00:00:03]} Kh7 {[%clk
00:04:45]} {[%emt 00:00:16]} 32. Rh3 {[%clk 00:09:06]} {[%emt 00:00:02]} Bg7
{[%clk 00:04:37]} {[%emt 00:00:13]} 33. Reg3 {[%clk 00:08:41]} {[%emt
00:00:30]} Be8 {[%clk 00:03:03]} {[%emt 00:01:40]} 34. Qe1 {[%clk 00:08:28]}
{[%emt 00:00:17]} Bf7 {[%clk 00:02:37]} {[%emt 00:00:32]} 35. Rg5 {[%clk
00:08:24]} {[%emt 00:00:09]} Rh8 {[%clk 00:01:57]} {[%emt 00:00:46]} 36. d5
{[%clk 00:08:18]} {[%emt 00:00:10]} 1-0

[Event "Goteborg Open 2018"]
[Site "Molnlycke kulturhus, Biblioteksgatan 2, Molnlycke, Sweden"]
[Date "2018.08.17"]
[Round "1.4"]
[White "Knutsson, Hakan"]
[Black "Rydstrom, Tom"]
[Result "0-1"]
[TimeControl "15 minutes + 5 seconds per move from move one (Round 1 - 4) / 90 minutes + 30 seconds per move from move one (Round 5 - 8)"]
[BlackTitle "FM"]
[WhiteFideId "1706810"]
[BlackFideId "1714830"]
[WhiteElo "1836"]
[BlackElo "2316"]

1. e4 {[%clk 00:15:02]} {[%emt 00:00:01]} c5 {[%clk 00:14:30]} {[%emt
00:00:37]} 2. Nf3 {[%clk 00:15:02]} {[%emt 00:00:04]} e6 {[%clk 00:14:34]}
{[%emt 00:00:02]} 3. d4 {[%clk 00:15:05]} {[%emt 00:00:02]} cxd4 {[%clk
00:14:38]} {[%emt 00:00:02]} 4. Nxd4 {[%clk 00:15:08]} {[%emt 00:00:01]} a6
{[%clk 00:14:42]} {[%emt 00:00:01]} 5. Nc3 {[%clk 00:14:59]} {[%emt 00:00:13]}
Qc7 {[%clk 00:14:36]} {[%emt 00:00:11]} 6. Be2 {[%clk 00:14:48]} {[%emt
00:00:15]} b5 {[%clk 00:14:05]} {[%emt 00:00:37]} 7. a3 {[%clk 00:14:23]}
{[%emt 00:00:30]} Bb7 {[%clk 00:14:02]} {[%emt 00:00:08]} 8. O-O {[%clk
00:13:41]} {[%emt 00:00:47]} Nf6 {[%clk 00:13:44]} {[%emt 00:00:23]} 9. Bd3
{[%clk 00:12:45]} {[%emt 00:01:01]} Be7 {[%clk 00:12:49]} {[%emt 00:01:00]} 10.
Kh1 {[%clk 00:12:25]} {[%emt 00:00:25]} d5 {[%clk 00:12:06]} {[%emt 00:00:48]}
11. exd5 {[%clk 00:11:57]} {[%emt 00:00:33]} Nxd5 {[%clk 00:12:08]} {[%emt
00:00:04]} 12. Ne4 {[%clk 00:11:01]} {[%emt 00:01:01]} Nc6 {[%clk 00:11:36]}
{[%emt 00:00:37]} 13. Nxc6 {[%clk 00:10:50]} {[%emt 00:00:16]} Qxc6 {[%clk
00:11:38]} {[%emt 00:00:03]} 14. f3 {[%clk 00:09:23]} {[%emt 00:01:31]} O-O
{[%clk 00:11:33]} {[%emt 00:00:10]} 15. Qe1 {[%clk 00:09:25]} {[%emt 00:00:03]}
Rae8 {[%clk 00:10:38]} {[%emt 00:01:01]} 16. Qg3 {[%clk 00:09:10]} {[%emt
00:00:19]} f5 {[%clk 00:09:01]} {[%emt 00:01:43]} 17. Bh6 {[%clk 00:05:40]}
{[%emt 00:03:35]} Rf7 {[%clk 00:09:05]} {[%emt 00:00:02]} 18. Ng5 {[%clk
00:05:37]} {[%emt 00:00:07]} gxh6 {[%clk 00:08:00]} {[%emt 00:01:10]} 19. Nxf7+
{[%clk 00:05:19]} {[%emt 00:00:22]} Kxf7 {[%clk 00:08:03]} {[%emt 00:00:02]} 20.
Rae1 {[%clk 00:05:15]} {[%emt 00:00:08]} Bf6 {[%clk 00:07:25]} {[%emt
00:00:43]} 21. c3 {[%clk 00:05:12]} {[%emt 00:00:09]} Rg8 {[%clk 00:07:08]}
{[%emt 00:00:22]} 22. Qf2 {[%clk 00:05:15]} {[%emt 00:00:02]} Nf4 {[%clk
00:07:02]} {[%emt 00:00:11]} 0-1

[Event "Goteborg Open 2018"]
[Site "Molnlycke kulturhus, Biblioteksgatan 2, Molnlycke, Sweden"]
[Date "2018.08.17"]
[Round "1.5"]
[White "Lacko, Pavel"]
[Black "Mohammed, Safian Haj"]
[Result "0-1"]
[TimeControl "15 minutes + 5 seconds per move from move one (Round 1 - 4) / 90 minutes + 30 seconds per move from move one (Round 5 - 8)"]
[WhiteFideId "1701274"]
[BlackFideId "1729276"]
[WhiteElo "2209"]
[BlackElo "1807"]

1. d4 {[%clk 00:15:01]} {[%emt 00:00:03]} Nf6 {[%clk 00:14:57]} {[%emt
00:00:08]} 2. c4 {[%clk 00:15:02]} {[%emt 00:00:05]} e5 {[%clk 00:14:49]}
{[%emt 00:00:13]} 3. dxe5 {[%clk 00:15:02]} {[%emt 00:00:04]} Ng4 {[%clk
00:14:52]} {[%emt 00:00:02]} 4. Nf3 {[%clk 00:15:04]} {[%emt 00:00:03]} Nc6
{[%clk 00:14:54]} {[%emt 00:00:03]} 5. e3 {[%clk 00:15:04]} {[%emt 00:00:04]}
Ngxe5 {[%clk 00:14:56]} {[%emt 00:00:04]} 6. Nxe5 {[%clk 00:15:04]} {[%emt
00:00:06]} Nxe5 {[%clk 00:14:58]} {[%emt 00:00:02]} 7. Be2 {[%clk 00:15:07]}
{[%emt 00:00:02]} Bb4+ {[%clk 00:14:53]} {[%emt 00:00:09]} 8. Bd2 {[%clk
00:15:01]} {[%emt 00:00:12]} Qe7 {[%clk 00:14:51]} {[%emt 00:00:06]} 9. O-O
{[%clk 00:14:54]} {[%emt 00:00:13]} Bxd2 {[%clk 00:14:33]} {[%emt 00:00:23]} 10.
Qxd2 {[%clk 00:14:53]} {[%emt 00:00:06]} d6 {[%clk 00:14:32]} {[%emt 00:00:05]}
11. Nc3 {[%clk 00:14:48]} {[%emt 00:00:11]} Be6 {[%clk 00:14:30]} {[%emt
00:00:07]} 12. b3 {[%clk 00:14:41]} {[%emt 00:00:12]} O-O {[%clk 00:13:30]}
{[%emt 00:01:04]} 13. h3 {[%clk 00:14:13]} {[%emt 00:00:33]} Qh4 {[%clk
00:11:23]} {[%emt 00:02:12]} 14. f4 {[%clk 00:13:32]} {[%emt 00:00:46]} Nc6
{[%clk 00:10:26]} {[%emt 00:01:02]} 15. f5 {[%clk 00:12:30]} {[%emt 00:01:07]}
Bd7 {[%clk 00:10:13]} {[%emt 00:00:18]} 16. Nd5 {[%clk 00:12:18]} {[%emt
00:00:18]} Rac8 {[%clk 00:10:02]} {[%emt 00:00:16]} 17. Rf4 {[%clk 00:10:08]}
{[%emt 00:02:15]} Qh6 {[%clk 00:07:53]} {[%emt 00:02:14]} 18. b4 {[%clk
00:09:39]} {[%emt 00:00:35]} Rfe8 {[%clk 00:07:40]} {[%emt 00:00:19]} 19. f6
{[%clk 00:08:47]} {[%emt 00:00:56]} g6 {[%clk 00:07:15]} {[%emt 00:00:29]} 20.
b5 {[%clk 00:08:44]} {[%emt 00:00:09]} Ne5 {[%clk 00:06:40]} {[%emt 00:00:40]}
21. Ne7+ {[%clk 00:08:43]} {[%emt 00:00:06]} Rxe7 {[%clk 00:06:03]} {[%emt
00:00:42]} 22. fxe7 {[%clk 00:08:46]} {[%emt 00:00:02]} Re8 {[%clk 00:05:44]}
{[%emt 00:00:24]} 23. Qd4 {[%clk 00:06:22]} {[%emt 00:01:21]} Rxe7 {[%clk
00:05:35]} {[%emt 00:01:22]} 24. Qxa7 {[%clk 00:05:26]} {[%emt 00:01:01]} Bxh3
{[%clk 00:04:22]} {[%emt 00:01:17]} 25. gxh3 {[%clk 00:04:46]} {[%emt
00:00:45]} Qxh3 {[%clk 00:04:21]} {[%emt 00:00:07]} 26. Qd4 {[%clk 00:04:05]}
{[%emt 00:00:45]} c5 {[%clk 00:02:23]} {[%emt 00:02:03]} 27. Qd2 {[%clk
00:02:25]} {[%emt 00:01:45]} Qg3+ {[%clk 00:01:38]} {[%emt 00:00:50]} 28. Kf1
{[%clk 00:02:22]} {[%emt 00:00:08]} g5 {[%clk 00:00:44]} {[%emt 00:00:59]} 29.
Rf2 {[%clk 00:01:44]} {[%emt 00:00:43]} h5 {[%clk 00:00:44]} {[%emt 00:00:05]}
30. Qxd6 {[%clk 00:01:13]} {[%emt 00:00:36]} Rd7 {[%clk 00:00:31]} {[%emt
00:00:18]} 31. Qxc5 {[%clk 00:00:53]} {[%emt 00:00:25]} Qh3+ {[%clk 00:00:31]}
{[%emt 00:00:05]} 32. Ke1 {[%clk 00:00:53]} {[%emt 00:00:06]} Qh1+ {[%clk
00:00:34]} {[%emt 00:00:02]} 33. Bf1 {[%clk 00:00:40]} {[%emt 00:00:18]} Nd3+
{[%clk 00:00:38]} {[%emt 00:00:01]} 0-1

[Event "Goteborg Open 2018"]
[Site "Molnlycke kulturhus, Biblioteksgatan 2, Molnlycke, Sweden"]
[Date "2018.08.17"]
[Round "1.6"]
[White "Lindholm, Gustav"]
[Black "Lundstrom, Mattias"]
[Result "0-1"]
[TimeControl "15 minutes + 5 seconds per move from move one (Round 1 - 4) / 90 minutes + 30 seconds per move from move one (Round 5 - 8)"]
[WhiteFideId "1736515"]
[BlackFideId "1703536"]
[WhiteElo "1806"]
[BlackElo "2163"]

1. d4 {[%clk 00:15:03]} {[%emt 00:00:01]} d5 {[%clk 00:15:03]} {[%emt
00:00:03]} 2. c4 {[%clk 00:15:06]} {[%emt 00:00:02]} e6 {[%clk 00:15:05]}
{[%emt 00:00:03]} 3. Nc3 {[%clk 00:15:09]} {[%emt 00:00:02]} c6 {[%clk
00:15:09]} {[%emt 00:00:01]} 4. Nf3 {[%clk 00:15:04]} {[%emt 00:00:10]} dxc4
{[%clk 00:15:07]} {[%emt 00:00:06]} 5. a4 {[%clk 00:15:04]} {[%emt 00:00:05]}
Bb4 {[%clk 00:15:10]} {[%emt 00:00:01]} 6. e4 {[%clk 00:14:47]} {[%emt
00:00:24]} b5 {[%clk 00:15:11]} {[%emt 00:00:04]} 7. Bd2 {[%clk 00:14:35]}
{[%emt 00:00:17]} a5 {[%clk 00:15:13]} {[%emt 00:00:02]} 8. axb5 {[%clk
00:14:26]} {[%emt 00:00:15]} Bxc3 {[%clk 00:15:15]} {[%emt 00:00:03]} 9. Bxc3
{[%clk 00:14:20]} {[%emt 00:00:11]} cxb5 {[%clk 00:15:18]} {[%emt 00:00:03]} 10.
b3 {[%clk 00:13:41]} {[%emt 00:00:45]} Bb7 {[%clk 00:15:20]} {[%emt 00:00:02]}
11. bxc4 {[%clk 00:12:40]} {[%emt 00:01:06]} b4 {[%clk 00:15:21]} {[%emt
00:00:04]} 12. Bb2 {[%clk 00:12:03]} {[%emt 00:00:43]} Bxe4 {[%clk 00:15:21]}
{[%emt 00:00:04]} 13. c5 {[%clk 00:10:21]} {[%emt 00:01:47]} Nf6 {[%clk
00:12:15]} {[%emt 00:03:11]} 14. Bb5+ {[%clk 00:08:41]} {[%emt 00:01:46]} Bc6
{[%clk 00:10:58]} {[%emt 00:01:20]} 15. Qa4 {[%clk 00:07:08]} {[%emt 00:01:39]}
Qd7 {[%clk 00:10:30]} {[%emt 00:00:33]} 16. Ne5 {[%clk 00:05:21]} {[%emt
00:01:53]} Bxb5 {[%clk 00:10:32]} {[%emt 00:00:03]} 17. Nxd7 {[%clk 00:05:23]}
{[%emt 00:00:03]} Bxa4 {[%clk 00:10:35]} {[%emt 00:00:02]} 18. Nxf6+ {[%clk
00:05:25]} {[%emt 00:00:03]} gxf6 {[%clk 00:10:38]} {[%emt 00:00:02]} 19. Rxa4
{[%clk 00:05:23]} {[%emt 00:00:07]} Ke7 {[%clk 00:10:36]} {[%emt 00:00:06]} 20.
Ke2 {[%clk 00:05:08]} {[%emt 00:00:20]} Rd8 {[%clk 00:10:38]} {[%emt 00:00:02]}
21. Rha1 {[%clk 00:04:38]} {[%emt 00:00:36]} Nc6 {[%clk 00:10:39]} {[%emt
00:00:04]} 22. Rd1 {[%clk 00:04:06]} {[%emt 00:00:37]} Rd5 {[%clk 00:10:41]}
{[%emt 00:00:03]} 23. Rd2 {[%clk 00:03:28]} {[%emt 00:00:43]} Rad8 {[%clk
00:10:28]} {[%emt 00:00:18]} 24. Rc2 {[%clk 00:01:47]} {[%emt 00:01:47]} Rxd4
{[%clk 00:09:24]} {[%emt 00:01:09]} 25. Bxd4 {[%clk 00:01:48]} {[%emt
00:00:04]} Nxd4+ {[%clk 00:09:27]} {[%emt 00:00:01]} 26. Kd1 {[%clk 00:01:41]}
{[%emt 00:00:11]} Nxc2+ {[%clk 00:09:30]} {[%emt 00:00:04]} 27. Kxc2 {[%clk
00:01:44]} {[%emt 00:00:02]} Ra8 {[%clk 00:09:33]} {[%emt 00:00:02]} 28. Kb3
{[%clk 00:01:43]} {[%emt 00:00:06]} Kd7 {[%clk 00:09:35]} {[%emt 00:00:02]} 29.
Kc4 {[%clk 00:01:44]} {[%emt 00:00:04]} Kc6 {[%clk 00:09:39]} {[%emt 00:00:02]}
30. Ra2 {[%clk 00:01:30]} {[%emt 00:00:20]} f5 {[%clk 00:09:20]} {[%emt
00:00:23]} 31. f4 {[%clk 00:01:31]} {[%emt 00:00:04]} b3 {[%clk 00:08:55]}
{[%emt 00:00:30]} 32. Kxb3 {[%clk 00:01:29]} {[%emt 00:00:07]} Kxc5 {[%clk
00:08:58]} {[%emt 00:00:02]} 33. Rc2+ {[%clk 00:01:11]} {[%emt 00:00:24]} Kd6
{[%clk 00:08:00]} {[%emt 00:01:02]} 34. Rd2+ {[%clk 00:01:11]} {[%emt
00:00:06]} Ke7 {[%clk 00:08:04]} {[%emt 00:00:01]} 35. Ka4 {[%clk 00:00:57]}
{[%emt 00:00:19]} f6 {[%clk 00:07:44]} {[%emt 00:00:24]} 36. Rb2 {[%clk
00:00:27]} {[%emt 00:00:35]} Ra7 {[%clk 00:07:45]} {[%emt 00:00:05]} 37. Rb5
{[%clk 00:00:23]} {[%emt 00:00:10]} Kd6 {[%clk 00:07:42]} {[%emt 00:00:07]} 38.
g3 {[%clk 00:00:15]} {[%emt 00:00:13]} e5 {[%clk 00:07:20]} {[%emt 00:00:26]}
39. Rb6+ {[%clk 00:00:16]} {[%emt 00:00:04]} Kd5 {[%clk 00:07:23]} {[%emt
00:00:02]} 40. Rxf6 {[%clk 00:00:20]} {[%emt 00:00:02]} e4 {[%clk 00:06:57]}
{[%emt 00:00:31]} 41. Rxf5+ {[%clk 00:00:22]} {[%emt 00:00:03]} Kd4 {[%clk
00:06:59]} {[%emt 00:00:02]} 42. Re5 {[%clk 00:00:17]} {[%emt 00:00:11]} e3
{[%clk 00:07:01]} {[%emt 00:00:02]} 43. Re6 {[%clk 00:00:11]} {[%emt 00:00:11]}
Kd3 {[%clk 00:07:00]} {[%emt 00:00:05]} 44. Rd6+ {[%clk 00:00:15]} {[%emt
00:00:02]} Ke4 {[%clk 00:07:04]} 45. Rd1 {[%clk 00:00:06]} {[%emt 00:00:14]} e2
{[%clk 00:07:06]} {[%emt 00:00:02]} 46. Re1 {[%clk 00:00:10]} {[%emt 00:00:02]}
Ke3 {[%clk 00:07:10]} 47. f5 {[%clk 00:00:14]} {[%emt 00:00:02]} Kf2 {[%clk
00:07:13]} {[%emt 00:00:02]} 0-1